fUST/lending_fUST_20240824
["ID","MTS","AMOUNT","RATE_DAILY","PERIOD"]
[335727488,1724465446860,-2571.08,0.00013698,2]
[335727490,1724465446870,-2571.08,0.00013698,2]
[335727492,1724465446879,-2571.08,0.00013698,2]
[335727494,1724465446889,-530.63,0.00013698,2]
[335727496,1724465446899,-2571.08,0.00013698,2]
[335727498,1724465446909,-530.63,0.00013698,2]
[335727500,1724465446920,-2571.08,0.00013698,2]
[335727502,1724465446929,-1275.9,0.00013698,2]
[335727504,1724465446939,-530.63,0.00013698,2]
[335727506,1724465446949,-2571.08,0.00013698,2]
[335727508,1724465446959,-530.63,0.00013698,2]
[335727510,1724465446968,-2571.1634583,0.00013698,2]
[335727512,1724465446978,-530.63,0.00013698,2]
[335727514,1724465446993,-530.63,0.00013698,2]
[335727517,1724465447003,-530.63,0.00013698,2]
[335727518,1724465447012,-530.63,0.00013698,2]
[335727521,1724465447023,-530.63,0.00013698,2]
[335727523,1724465447034,-500.0,0.00013698,2]
[335727525,1724465447043,-530.63,0.00013698,2]
[335727527,1724465447053,-530.63,0.00013698,2]
[335727528,1724465447063,-530.63,0.00013698,2]
[335727531,1724465447074,-530.63,0.00013698,2]
[335727532,1724465447083,-500.0,0.00013698,2]
[335727534,1724465447092,-530.63,0.00013698,2]
[335727536,1724465447102,-530.63,0.00013698,2]
[335727539,1724465447112,-530.63,0.00013698,2]
[335727541,1724465447123,-833.84,0.00013698,2]
[335727543,1724465447132,-530.63,0.00013698,2]
[335727545,1724465447143,-530.63,0.00013698,2]
[335727547,1724465447153,-530.74066814,0.00013698,2]
[335727549,1724465447162,-580.56,0.00013698,2]
[335727551,1724465447172,-3529.93,0.00013698,2]
[335727553,1724465447181,-372.73170538,0.00013698,2]
[335727555,1724465447191,-2288.05,0.00013698,2]
[335727557,1724465447201,-690.88,0.00013698,2]
[335727559,1724465447210,-1388.95,0.00013698,2]
[335727561,1724465447220,-1490.72,0.00013698,2]
[335727563,1724465447230,-1101.21,0.00013698,2]
[335727565,1724465447239,-500.0,0.00013698,2]
[335727566,1724465447248,-500.0,0.00013698,2]
[335727569,1724465447257,-612.59,0.00013698,2]
[335727571,1724465447268,-962.01,0.00013698,2]
[335727573,1724465447277,-1384.640485,0.00013698,2]
[335727575,1724465447286,-3159.53,0.00013698,2]
[335727577,1724465447296,-1041.37,0.00013698,2]
[335727579,1724465447306,-500.0,0.00013698,2]
[335727581,1724465447315,-500.0,0.00013698,2]
[335727583,1724465447325,-1384.640485,0.00013698,2]
[335727585,1724465447334,-721.92,0.00013698,2]
[335727587,1724465447344,-1014.36,0.00013698,2]
[335727589,1724465447353,-10147.45,0.00013698,2]
[335727591,1724465447362,-500.0,0.00013698,2]
[335727593,1724465447372,-1408.67,0.00013698,2]
[335727595,1724465447382,-500.0,0.00013698,2]
[335727597,1724465447394,-500.0,0.00013698,2]
[335727599,1724465447404,-500.0,0.00013698,2]
[335727601,1724465447413,-500.0,0.00013698,2]
[335727603,1724465447424,-156.26,0.00013698,2]
[335727605,1724465447434,-500.0,0.00013698,2]
[335727607,1724465447443,-500.0,0.00013698,2]
[335727609,1724465447453,-500.0,0.00013698,2]
[335727611,1724465447463,-500.64056354,0.00013698,2]
[335727613,1724465447472,-500.0,0.00013698,2]
[335727615,1724465447482,-574.87,0.00013698,2]
[335727617,1724465447492,-500.0,0.00013698,2]
[335727619,1724465447502,-9387.82,0.00013698,2]
[335727621,1724465447512,-13359.37,0.00013698,2]
[335727623,1724465447521,-500.0,0.00013698,2]
[335727625,1724465447531,-1000.0,0.00013698,2]
[335727627,1724465447540,-500.0,0.00013698,2]
[335727629,1724465447550,-582.09,0.00013698,2]
[335727631,1724465447560,-500.32815684,0.00013698,2]
[335727633,1724465447570,-500.0,0.00013698,2]
[335727636,1724465447579,-500.0,0.00013698,2]
[335727638,1724465447588,-500.0,0.00013698,2]
[335727640,1724465447598,-542.74513488,0.00013698,2]
[335727642,1724465447607,-1074.13,0.00013698,2]
[335727644,1724465447616,-6596.17,0.00013698,2]
[335727646,1724465447625,-9902.71,0.00013698,2]
[335727648,1724465447635,-592.0,0.00013698,2]
[335727650,1724465447645,-690.31,0.00013698,2]
[335727652,1724465447655,-500.0,0.00013698,2]
[335727654,1724465447664,-2152.74,0.00013698,2]
[335727656,1724465447673,-500.0,0.00013698,2]
[335727658,1724465447683,-11879.43,0.00013698,2]
[335727660,1724465447692,-3809.28,0.00013698,2]
[335727662,1724465447701,-500.0,0.00013698,2]
[335727664,1724465447711,-500.0,0.00013698,2]
[335727666,1724465447720,-500.0,0.00013698,2]
[335727668,1724465447731,-500.0,0.00013698,2]
[335727670,1724465447740,-500.0,0.00013698,2]
[335727672,1724465447750,-500.0,0.00013698,2]
[335727674,1724465447759,-1410.1,0.00013698,2]
[335727676,1724465447769,-1263.8,0.00013698,2]
[335727678,1724465447779,-500.0,0.00013698,2]
[335727680,1724465447788,-502.95744415,0.00013698,2]
[335727682,1724465447798,-500.0,0.00013698,2]
[335727684,1724465447807,-4811.83,0.00013698,2]
[335727686,1724465447816,-500.0,0.00013698,2]
[335727688,1724465447826,-500.0,0.00013698,2]
[335727690,1724465447836,-661.19,0.00013698,2]
[335727692,1724465447845,-506.58545164,0.00013698,2]
[335727694,1724465447855,-912.54,0.00013698,2]
[335727695,1724465447864,-500.0,0.00013698,2]
[335727698,1724465447875,-744.33,0.00013698,2]
[335727700,1724465447884,-501.38961216,0.00013698,2]
[335727702,1724465447895,-500.0,0.00013698,2]
[335727704,1724465447904,-500.0,0.00013698,2]
[335727706,1724465447914,-500.0,0.00013698,2]
[335727708,1724465447924,-966.95,0.00013698,2]
[335727710,1724465447934,-500.0,0.00013698,2]
[335727712,1724465447943,-677.61,0.00013698,2]
[335727714,1724465447954,-202.44085024,0.00013698,2]
[335727716,1724465447964,-500.0,0.00013698,2]
[335727718,1724465447973,-500.0,0.00013698,2]
[335727720,1724465447986,-6416.23,0.00013698,2]
[335727722,1724465447996,-500.0,0.00013698,2]
[335727724,1724465448005,-244.47231644,0.00013698,2]
[335727726,1724465448015,-1080.32,0.00013698,2]
[335727728,1724465448024,-500.0,0.00013698,2]
[335727730,1724465448034,-695.47,0.00013698,2]
[335727732,1724465448043,-883.54,0.00013698,2]
[335727734,1724465448053,-2795.05,0.00013698,2]
[335727736,1724465448062,-1723.41,0.00013698,2]
[335727738,1724465448072,-500.0,0.00013698,2]
[335727756,1724465448234,-500.0,0.00013698,2]
[335727758,1724465448244,-315.43926399,0.00013698,2]
[335727759,1724465448254,-687.53,0.00013698,2]
[335727761,1724465448264,-500.0,0.00013698,2]
[335727763,1724465448273,-500.0,0.00013698,2]
[335727765,1724465448283,-3545.09,0.00013698,2]
[335727767,1724465448292,-500.0,0.00013698,2]
[335727768,1724465448302,-1908.44,0.00013698,2]
[335727770,1724465448312,-500.0,0.00013698,2]
[335727772,1724465448321,-4642.81,0.00013698,2]
[335727774,1724465448331,-2625.55,0.00013698,2]
[335727775,1724465448341,-500.0,0.00013698,2]
[335727776,1724465448350,-2012.06,0.00013698,2]
[335727777,1724465448360,-500.0,0.00013698,2]
[335727778,1724465448370,-377.1852082,0.00013698,2]
[335727779,1724465448379,-500.0,0.00013698,2]
[335727780,1724465448389,-500.0,0.00013698,2]
[335727781,1724465448399,-980.99,0.00013698,2]
[335727782,1724465448408,-500.0,0.00013698,2]
[335727783,1724465448418,-1059.57,0.00013698,2]
[335727784,1724465448427,-500.0,0.00013698,2]
[335727785,1724465448437,-500.0,0.00013698,2]
[335727786,1724465448447,-500.0,0.00013698,2]
[335727787,1724465448457,-500.0,0.00013698,2]
[335727788,1724465448467,-500.0,0.00013698,2]
[335727789,1724465448477,-4783.5,0.00013698,2]
[335727790,1724465448486,-500.0,0.00013698,2]
[335727791,1724465448496,-541.72,0.00013698,2]
[335727792,1724465448505,-541.72,0.00013698,2]
[335727793,1724465448515,-541.72,0.00013698,2]
[335727794,1724465448525,-541.72,0.00013698,2]
[335727795,1724465448534,-500.0,0.00013698,2]
[335727796,1724465448543,-541.72,0.00013698,2]
[335727797,1724465448552,-541.72,0.00013698,2]
[335727798,1724465448562,-541.72,0.00013698,2]
[335727799,1724465448571,-541.72,0.00013698,2]
[335727800,1724465448581,-541.72,0.00013698,2]
[335727801,1724465448592,-541.72,0.00013698,2]
[335727802,1724465448601,-601.68,0.00013698,2]
[335727803,1724465448611,-541.72,0.00013698,2]
[335727804,1724465448621,-500.0,0.00013698,2]
[335727805,1724465448631,-541.72,0.00013698,2]
[335727806,1724465448641,-541.72,0.00013698,2]
[335727807,1724465448655,-500.97197037,0.00013698,2]
[335727808,1724465448665,-500.0,0.00013698,2]
[335727809,1724465448675,-541.72,0.00013698,2]
[335727810,1724465448684,-704.81,0.00013698,2]
[335727811,1724465448694,-541.72,0.00013698,2]
[335727812,1724465448704,-541.72,0.00013698,2]
[335727813,1724465448714,-2714.33,0.00013698,2]
[335727814,1724465448725,-541.72,0.00013698,2]
[335727815,1724465448735,-541.72,0.00013698,2]
[335727816,1724465448745,-541.72,0.00013698,2]
[335727817,1724465448755,-541.72,0.00013698,2]
[335727818,1724465448764,-500.0,0.00013698,2]
[335727819,1724465448774,-541.72,0.00013698,2]
[335727820,1724465448784,-500.0,0.00013698,2]
[335727821,1724465448794,-541.72,0.00013698,2]
[335727822,1724465448804,-500.0,0.00013698,2]
[335727823,1724465448815,-541.72,0.00013698,2]
[335727824,1724465448825,-500.0,0.00013698,2]
[335727825,1724465448835,-541.83927933,0.00013698,2]
[335727826,1724465448845,-500.0,0.00013698,2]
[335727827,1724465448854,-500.0,0.00013698,2]
[335727828,1724465448864,-500.0,0.00013698,2]
[335727829,1724465448875,-503.05914512,0.00013698,2]
[335727830,1724465448884,-500.0,0.00013698,2]
[335727831,1724465448896,-500.0,0.00013698,2]
[335727832,1724465448905,-2273.67,0.00013698,2]
[335727833,1724465448915,-788.2,0.00013698,2]
[335727834,1724465448924,-2413.3,0.00013698,2]
[335727835,1724465448934,-718.98,0.00013698,2]
[335727836,1724465448943,-500.0,0.00013698,2]
[335727837,1724465448954,-846.74,0.00013698,2]
[335727838,1724465448963,-500.0,0.00013698,2]
[335727839,1724465448974,-500.0,0.00013698,2]
[335727840,1724465448984,-861.37,0.00013698,2]
[335727841,1724465448995,-528.3863952,0.00013698,2]
[335727842,1724465449004,-978.8,0.00013698,2]
[335727843,1724465449013,-1286.12,0.00013698,2]
[335727844,1724465449023,-500.0,0.00013698,2]
[335727845,1724465449032,-1081.37,0.00013698,2]
[335727846,1724465449042,-500.0,0.00013698,2]
[335727847,1724465449053,-3165.38,0.00013698,2]
[335727848,1724465449062,-500.0,0.00013698,2]
[335727849,1724465449072,-500.31810523,0.00013698,2]
[335727850,1724465449082,-506.51205124,0.00013698,2]
[335727851,1724465449091,-331.08228858,0.00013698,2]
[335727852,1724465449101,-14688.01,0.00013698,2]
[335727853,1724465449110,-3910.79,0.00013698,2]
[335727854,1724465449120,-1556.53,0.00013698,2]
[335727855,1724465449129,-1556.53,0.00013698,2]
[335727856,1724465449140,-1556.53,0.00013698,2]
[335727857,1724465449149,-1556.53,0.00013698,2]
[335727858,1724465449159,-1556.53,0.00013698,2]
[335727859,1724465449169,-501.81230016,0.00013698,2]
[335727860,1724465449178,-511.23922017,0.00013698,2]
[335727861,1724465449188,-1556.53,0.00013698,2]
[335727862,1724465449197,-500.0,0.00013698,2]
[335727863,1724465449206,-1556.53,0.00013698,2]
[335727864,1724465449216,-1556.53,0.00013698,2]
[335727865,1724465449226,-664.47,0.00013698,2]
[335727866,1724465449235,-1556.53,0.00013698,2]
[335727867,1724465449245,-2104.95,0.00013698,2]
[335727868,1724465449255,-1556.53,0.00013698,2]
[335727869,1724465449273,-1556.53,0.00013698,2]
[335727870,1724465449292,-2822.86,0.00013698,2]
[335727871,1724465449306,-1556.53,0.00013698,2]
[335727872,1724465449324,-500.0,0.00013698,2]
[335727873,1724465449342,-1556.53,0.00013698,2]
[335727874,1724465449361,-1556.53,0.00013698,2]
[335727875,1724465449377,-1556.53,0.00013698,2]
[335727876,1724465449393,-1556.53,0.00013698,2]
[335727877,1724465449411,-1556.53,0.00013698,2]
[335727878,1724465449425,-1556.53,0.00013698,2]
[335727879,1724465449439,-790.25,0.00013698,2]
[335727880,1724465449457,-500.0,0.00013698,2]
[335727881,1724465449475,-500.38422383,0.00013698,2]
[335727882,1724465449495,-1556.53,0.00013698,2]
[335727883,1724465449509,-1556.53,0.00013698,2]
[335727884,1724465449522,-500.0,0.00013698,2]
[335727885,1724465449538,-1556.53,0.00013698,2]
[335727886,1724465449553,-1556.53,0.00013698,2]
[335727887,1724465449569,-1126.14,0.00013698,2]
[335727888,1724465449584,-3159.35,0.00013698,2]
[335727889,1724465449597,-1556.53,0.00013698,2]
[335727890,1724465449611,-1556.57197633,0.00013698,2]
[335727891,1724465449625,-3579.6,0.00013698,2]
[335727892,1724465449638,-500.41907596,0.00013698,2]
[335727893,1724465449654,-909.0,0.00013698,2]
[335727894,1724465449671,-500.0,0.00013698,2]
[335727895,1724465449684,-2173.34,0.00013698,2]
[335727896,1724465449697,-500.0,0.00013698,2]
[335727897,1724465449711,-748.63,0.00013698,2]
[335727898,1724465449725,-940.2,0.00013698,2]
[335727899,1724465449740,-500.0,0.00013698,2]
[335727900,1724465449754,-11900.14,0.00013698,2]
[335727901,1724465449768,-559.01710483,0.00013698,2]
[335727902,1724465449782,-2029.68,0.00013698,2]
[335727903,1724465449795,-500.0,0.00013698,2]
[335727904,1724465449809,-708.01,0.00013698,2]
[335727905,1724465449823,-500.0,0.00013698,2]
[335727906,1724465449838,-2884.77,0.00013698,2]
[335727907,1724465449852,-18115.6,0.00013698,2]
[335727908,1724465449866,-500.0,0.00013698,2]
[335727909,1724465449879,-500.0,0.00013698,2]
[335727910,1724465449895,-1782.14,0.00013698,2]
[335727911,1724465449909,-2320.51,0.00013698,2]
[335727912,1724465449923,-1921.02,0.00013698,2]
[335727913,1724465449936,-1083.11,0.00013698,2]
[335727914,1724465449950,-500.0,0.00013698,2]
[335727915,1724465449963,-4725.38,0.00013698,2]
[335727916,1724465449977,-9938.62,0.00013698,2]
[335727917,1724465449996,-500.0,0.00013698,2]
[335727918,1724465450009,-3000.0,0.00013699,2]
[335727919,1724465450023,-1575.947956,0.00013699,2]
[335727920,1724465450036,-1575.947956,0.00013699,2]
[335727921,1724465450049,-151.0,0.00013699,2]
[335727922,1724465450064,-203.559079,0.00013699,2]
[335727923,1724465450081,-203.559079,0.00013699,2]
[335727924,1724465450094,-151.0,0.00013699,2]
[335727925,1724465450107,-2504.499866,0.00013699,2]
[335727926,1724465450121,-4829.569905,0.00013699,2]
[335727927,1724465450135,-4829.569905,0.00013699,2]
[335727928,1724465450149,-770.534569,0.00013699,2]
[335727929,1724465450163,-770.534569,0.00013699,2]
[335727930,1724465450176,-404.775623,0.00013699,2]
[335727931,1724465450189,-1040.786388,0.00013699,2]
[335727932,1724465450204,-404.775623,0.00013699,2]
[335727933,1724465450218,-1040.786388,0.00013699,2]
[335727934,1724465450232,-204.026499,0.00013699,2]
[335727935,1724465450245,-204.026499,0.00013699,2]
[335727936,1724465450258,-151.0,0.00013699,2]
[335727937,1724465450272,-151.0,0.00013699,2]
[335727938,1724465450285,-296.87412,0.00013699,2]
[335727939,1724465450299,-151.0,0.00013699,2]
[335727940,1724465450313,-296.87412,0.00013699,2]
[335727941,1724465450328,-1083.43217,0.00013699,2]
[335727942,1724465450341,-181.031769,0.00013699,2]
[335727943,1724465450355,-1083.43217,0.00013699,2]
[335727944,1724465450368,-181.031769,0.00013699,2]
[335727945,1724465450381,-618.636103,0.00013699,2]
[335727946,1724465450395,-618.636103,0.00013699,2]
[335727947,1724465450409,-151.0,0.00013699,2]
[335727948,1724465450424,-151.0,0.00013699,2]
[335727949,1724465450437,-151.0,0.00013699,2]
[335727950,1724465450451,-151.0,0.00013699,2]
[335727951,1724465450465,-1724.856854,0.00013699,2]
[335727952,1724465450479,-1724.856854,0.00013699,2]
[335727953,1724465450493,-151.0,0.00013699,2]
[335727954,1724465450506,-151.0,0.00013699,2]
[335727955,1724465450519,-151.0,0.00013699,2]
[335727956,1724465450532,-151.0,0.00013699,2]
[335727957,1724465450547,-434.77802,0.00013699,2]
[335727958,1724465450560,-3113.003741,0.00013699,2]
[335727959,1724465450573,-434.77802,0.00013699,2]
[335727960,1724465450585,-3113.003741,0.00013699,2]
[335727961,1724465450595,-261.313277,0.00013699,2]
[335727962,1724465450604,-261.313277,0.00013699,2]
[335727963,1724465450613,-514.956958,0.00013699,2]
[335727964,1724465450622,-206.1246659,0.00013699,2]
[335727965,1724465450631,-757.50453255,0.00013699,2]
[335727966,1724465450642,-757.50453255,0.00013699,2]
[335727967,1724465450651,-757.50453255,0.00013699,2]
[335727968,1724465450661,-757.50453255,0.00013699,2]
[335727969,1724465450670,-757.50453255,0.00013699,2]
[335727970,1724465450680,-757.50453255,0.00013699,2]
[335727971,1724465450689,-757.50453255,0.00013699,2]
[335727972,1724465450699,-757.50453255,0.00013699,2]
[335727973,1724465450708,-757.50453255,0.00013699,2]
[335727974,1724465450717,-757.50453255,0.00013699,2]
[335727975,1724465450728,-757.50453255,0.00013699,2]
[335727976,1724465450737,-757.50453255,0.00013699,2]
[335727977,1724465450746,-757.50453255,0.00013699,2]
[335727978,1724465450756,-757.50453255,0.00013699,2]
[335727979,1724465450766,-757.50453255,0.00013699,2]
[335727980,1724465451052,-757.50453255,0.00013699,2]
[335727981,1724465451082,-757.50453255,0.00013699,2]
[335727982,1724465451099,-757.50453255,0.00013699,2]
[335727983,1724465451109,-757.50453255,0.00013699,2]
[335727984,1724465451118,-757.50453255,0.00013699,2]
[335727985,1724465451128,-757.50453255,0.00013699,2]
[335727986,1724465451137,-757.50453255,0.00013699,2]
[335727987,1724465451147,-757.50453255,0.00013699,2]
[335727988,1724465451156,-757.50453255,0.00013699,2]
[335727989,1724465451165,-757.50453255,0.00013699,2]
[335727990,1724465451174,-239.34000643,0.00013699,2]
[335727991,1724465451578,-68.78427104,0.00013699,2]
[335727992,1724465452127,-207.7006306,0.00012877,2]
[335727993,1724465452137,-1767.29008818,0.00012999,2]
[335727994,1724465452147,-500.0,0.00013698,2]
[335727995,1724465452157,-514.956958,0.00013699,2]
[335727996,1724465452167,-449.38025508,0.00013699,2]
[335727997,1724465452176,-757.50453255,0.00013699,2]
[335727998,1724465452185,-194.91980144,0.00013699,2]
[335727999,1724465452194,-3859.466789,0.00013699,2]
[335728000,1724465452203,-3859.466789,0.00013699,2]
[335728001,1724465452213,-440.192118,0.00013699,2]
[335728002,1724465452221,-440.192118,0.00013699,2]
[335728003,1724465452231,-498.321185,0.00013699,2]
[335728004,1724465452240,-498.321185,0.00013699,2]
[335728005,1724465452250,-238.820106,0.00013699,2]
[335728006,1724465452261,-238.820106,0.00013699,2]
[335728007,1724465452270,-151.0,0.00013699,2]
[335728008,1724465452279,-151.0,0.00013699,2]
[335728009,1724465452289,-434.77802,0.00013699,2]
[335728010,1724465452298,-434.77802,0.00013699,2]
[335728011,1724465452308,-150.112233,0.000137,2]
[335728012,1724465452318,-150.112233,0.000137,2]
[335728013,1724465452327,-150.112233,0.000137,2]
[335728014,1724465452336,-150.112233,0.000137,2]
[335728015,1724465452345,-150.112233,0.000137,2]
[335728016,1724465452355,-150.112233,0.000137,2]
[335728017,1724465452364,-150.112233,0.000137,2]
[335728018,1724465452373,-150.112233,0.000137,2]
[335728019,1724465452382,-150.112233,0.000137,2]
[335728020,1724465452391,-150.112233,0.000137,2]
[335728021,1724465452400,-155.975649,0.000137,2]
[335728022,1724465452409,-153.0,0.00013762,2]
[335728023,1724465452419,-153.0,0.00013762,2]
[335728024,1724465452428,-153.0,0.00013762,2]
[335728025,1724465452437,-153.0,0.00013762,2]
[335728026,1724465452446,-153.0,0.00013762,2]
[335728027,1724465452455,-153.0,0.00013762,2]
[335728028,1724465452465,-153.0,0.00013762,2]
[335728029,1724465452474,-153.0,0.00013762,2]
[335728030,1724465452483,-153.0,0.00013762,2]
[335728031,1724465452492,-153.0,0.00013762,2]
[335728032,1724465452502,-153.0,0.00013762,2]
[335728033,1724465452511,-153.0,0.00013762,2]
[335728034,1724465452520,-153.0,0.00013762,2]
[335728035,1724465452529,-247.0,0.00013762,2]
[335728036,1724465452538,-247.0,0.00013762,2]
[335728037,1724465452547,-247.0,0.00013762,2]
[335728038,1724465452556,-247.0,0.00013762,2]
[335728039,1724465452565,-247.0,0.00013762,2]
[335728040,1724465452575,-247.0,0.00013762,2]
[335728041,1724465452584,-247.0,0.00013762,2]
[335728042,1724465452593,-247.0,0.00013762,2]
[335728043,1724465452603,-247.0,0.00013762,2]
[335728044,1724465452612,-247.0,0.00013762,2]
[335728045,1724465452622,-247.0,0.00013762,2]
[335728046,1724465452631,-247.0,0.00013762,2]
[335728047,1724465452640,-247.0,0.00013762,2]
[335728048,1724465452651,-247.0,0.00013762,2]
[335728049,1724465452660,-247.0,0.00013762,2]
[335728050,1724465452670,-247.0,0.00013762,2]
[335728051,1724465452679,-247.0,0.00013762,2]
[335728052,1724465452688,-153.0,0.00013762,2]
[335728053,1724465452697,-153.0,0.00013762,2]
[335728054,1724465452709,-153.0,0.00013762,2]
[335728055,1724465452718,-153.0,0.00013762,2]
[335728056,1724465452728,-153.0,0.00013762,2]
[335728057,1724465452738,-153.0,0.00013762,2]
[335728058,1724465452748,-153.0,0.00013762,2]
[335728059,1724465452757,-153.0,0.00013762,2]
[335728060,1724465452766,-153.0,0.00013762,2]
[335728061,1724465452776,-153.0,0.00013762,2]
[335728062,1724465452785,-153.0,0.00013762,2]
[335728063,1724465452795,-247.0,0.00013762,2]
[335728064,1724465452804,-247.0,0.00013762,2]
[335728065,1724465452813,-247.0,0.00013762,2]
[335728066,1724465452822,-247.0,0.00013762,2]
[335728067,1724465452832,-247.0,0.00013762,2]
[335728068,1724465452841,-247.0,0.00013762,2]
[335728069,1724465452851,-247.0,0.00013762,2]
[335728070,1724465452861,-247.0,0.00013762,2]
[335728071,1724465452870,-247.0,0.00013762,2]
[335728072,1724465452879,-247.0,0.00013762,2]
[335728073,1724465452889,-247.0,0.00013762,2]
[335728074,1724465452899,-247.0,0.00013762,2]
[335728075,1724465452908,-247.0,0.00013762,2]
[335728076,1724465452917,-247.0,0.00013762,2]
[335728077,1724465452927,-153.0,0.00013762,2]
[335728078,1724465452936,-153.0,0.00013762,2]
[335728079,1724465452946,-153.0,0.00013762,2]
[335728080,1724465452956,-153.0,0.00013762,2]
[335728081,1724465452966,-153.0,0.00013762,2]
[335728082,1724465452975,-153.0,0.00013762,2]
[335728083,1724465452987,-153.0,0.00013762,2]
[335728084,1724465452997,-153.0,0.00013762,2]
[335728085,1724465453007,-153.0,0.00013762,2]
[335728086,1724465453016,-153.0,0.00013762,2]
[335728087,1724465453027,-153.0,0.00013762,2]
[335728088,1724465453036,-153.0,0.00013762,2]
[335728089,1724465453046,-247.0,0.00013762,2]
[335728090,1724465453055,-247.0,0.00013762,2]
[335728091,1724465453066,-247.0,0.00013762,2]
[335728092,1724465453075,-247.0,0.00013762,2]
[335728093,1724465453085,-247.0,0.00013762,2]
[335728094,1724465453095,-247.0,0.00013762,2]
[335728095,1724465453104,-247.0,0.00013762,2]
[335728096,1724465453113,-247.0,0.00013762,2]
[335728097,1724465453122,-247.0,0.00013762,2]
[335728098,1724465453132,-247.0,0.00013762,2]
[335728099,1724465453141,-247.0,0.00013762,2]
[335728100,1724465453152,-247.0,0.00013762,2]
[335728101,1724465453161,-247.0,0.00013762,2]
[335728102,1724465453170,-247.0,0.00013762,2]
[335728103,1724465453180,-153.0,0.0001377,2]
[335728104,1724465453190,-153.0,0.0001377,2]
[335728105,1724465453199,-153.0,0.0001377,2]
[335728106,1724465453209,-153.0,0.0001377,2]
[335728107,1724465453219,-153.0,0.0001377,2]
[335728108,1724465453228,-153.0,0.0001377,2]
[335728109,1724465453237,-153.0,0.0001377,2]
[335728110,1724465453246,-153.0,0.0001377,2]
[335728111,1724465453256,-153.0,0.0001377,2]
[335728112,1724465453266,-153.0,0.0001377,2]
[335728113,1724465453275,-153.0,0.0001377,2]
[335728114,1724465453286,-247.0,0.0001377,2]
[335728115,1724465453295,-247.0,0.0001377,2]
[335728116,1724465453304,-247.0,0.0001377,2]
[335728117,1724465453313,-247.0,0.0001377,2]
[335728118,1724465453323,-247.0,0.0001377,2]
[335728119,1724465453332,-247.0,0.0001377,2]
[335728120,1724465453341,-247.0,0.0001377,2]
[335728121,1724465453351,-247.0,0.0001377,2]
[335728122,1724465453360,-247.0,0.0001377,2]
[335728123,1724465453370,-247.0,0.0001377,2]
[335728124,1724465453379,-247.0,0.0001377,2]
[335728125,1724465453388,-247.0,0.0001377,2]
[335728126,1724465453608,-247.0,0.0001377,2]
[335728127,1724465453618,-247.0,0.0001377,2]
[335728128,1724465453627,-153.0,0.0001377,2]
[335728129,1724465453636,-153.0,0.0001377,2]
[335728130,1724465453647,-153.0,0.0001377,2]
[335728131,1724465453656,-153.0,0.0001377,2]
[335728132,1724465453665,-153.0,0.0001377,2]
[335728133,1724465453675,-153.0,0.0001377,2]
[335728134,1724465453684,-153.0,0.0001377,2]
[335728135,1724465453694,-153.0,0.0001377,2]
[335728136,1724465453703,-153.0,0.0001377,2]
[335728137,1724465453712,-247.0,0.0001377,2]
[335728138,1724465453721,-247.0,0.0001377,2]